bitfinex/quotes_BTCUSD_20240820
["timestamp","ask_amount","ask_price","bid_price","bid_amount"]
[1724126478683,0.164766,60692.0,60688.0,0.17296538]
[1724126479195,0.168766,60692.0,60688.0,0.17296538]
[1724126479574,0.164769,60691.0,60688.0,0.00818938]
[1724126479715,0.001,60692.0,60688.0,0.00818938]
[1724126479913,0.164769,60691.0,60688.0,0.00818938]
[1724126480157,0.1,60692.0,60688.0,0.00818938]
[1724126480158,0.164771,60690.0,60688.0,0.00818938]
[1724126480356,0.164769,60691.0,60686.0,0.164781]
[1724126480562,0.164769,60691.0,60687.0,0.17297865]
[1724126481338,0.164769,60691.0,60689.0,0.0009086]
[1724126481641,0.164769,60691.0,60690.0,0.00816684]
[1724126482206,0.903845,60691.0,60690.0,0.00816684]
[1724126482389,0.164769,60691.0,60690.0,0.00816684]
[1724126482585,0.002,60691.0,60689.0,0.0009086]
[1724126483012,0.1,60692.0,60689.0,0.1656826]
[1724126483184,0.1,60692.0,60689.0,0.3134826]
[1724126483437,0.002,60691.0,60690.0,0.823857]
[1724126484248,0.002,60691.0,60690.0,0.83562803]
[1724126484608,0.000826,60695.0,60691.0,0.329535]
[1724126484808,0.000826,60695.0,60694.0,0.16476]
[1724126485190,0.000826,60695.0,60694.0,0.17646342]
[1724126485390,0.000826,60695.0,60694.0,0.01170342]
[1724126485832,0.000826,60695.0,60693.0,0.164763]
[1724126486315,0.000826,60695.0,60689.0,0.4782556]
[1724126486316,0.000826,60695.0,60694.0,0.16576]
[1724126486717,0.000826,60695.0,60694.0,0.494281]
[1724126486951,0.000826,60695.0,60694.0,0.972502]
[1724126487383,0.000826,60695.0,60694.0,1.322815]
[1724126488665,0.000826,60695.0,60694.0,1.320815]
[1724126489074,0.000826,60695.0,60694.0,1.322815]
[1724126489288,0.000826,60695.0,60694.0,1.320815]
[1724126489490,0.000826,60695.0,60694.0,1.326815]
[1724126489641,0.000826,60695.0,60694.0,1.335815]
[1724126489871,0.000826,60695.0,60694.0,1.315023]
[1724126490052,0.000826,60695.0,60694.0,1.7016171]
[1724126490273,0.000826,60695.0,60694.0,1.87596587]
[1724126490485,0.000826,60695.0,60694.0,1.87296587]
[1724126490680,0.1475,60716.0,60711.0,0.329428]
[1724126490909,0.1475,60716.0,60713.0,0.164707]
[1724126492344,0.164696,60718.0,60701.0,0.164741]
[1724126492345,0.164729,60706.0,60701.0,0.164741]
[1724126492620,0.164729,60706.0,60694.0,0.15011188]
[1724126492621,0.164734,60704.0,60702.0,0.02078722]
[1724126492878,0.164734,60704.0,60695.0,0.03627575]
[1724126492879,0.164737,60703.0,60696.0,0.164752]
[1724126493153,0.164737,60703.0,60697.0,0.18554414]
[1724126493403,0.16474,60702.0,60698.0,0.18554314]
[1724126493674,0.16474,60702.0,60701.0,0.003]
[1724126493949,0.16474,60702.0,60701.0,0.008]
[1724126494829,0.16474,60702.0,60701.0,0.005]
[1724126495279,0.329471,60704.0,60701.0,0.005]
[1724126495280,0.494207,60704.0,60701.0,0.005]
[1724126495470,0.164737,60703.0,60701.0,0.005]
[1724126495872,0.329471,60704.0,60698.0,0.164749]
[1724126495873,0.164741,60702.0,60698.0,0.164749]
[1724126496078,0.164741,60702.0,60699.0,0.02079429]
[1724126496282,0.164741,60702.0,60698.0,0.164749]
[1724126496486,0.164741,60702.0,60699.0,0.02079433]
[1724126496710,0.164741,60702.0,60698.0,0.164749]
[1724126497118,0.0655,60700.0,60689.0,0.17769271]
[1724126497330,0.0655,60700.0,60690.0,0.02079766]
[1724126497331,0.164759,60695.0,60690.0,0.02079766]
[1724126497541,0.164756,60696.0,60692.0,0.164765]
[1724126498391,0.329511,60696.0,60689.0,0.1414086]
[1724126498613,0.164765,60693.0,60690.0,0.02080262]
[1724126498820,0.164765,60693.0,60691.0,0.02080262]
[1724126499035,0.164765,60693.0,60689.0,0.1656806]
[1724126499237,0.164765,60693.0,60692.0,0.004]
[1724126499861,0.164765,60693.0,60692.0,0.006]
[1724126500077,0.164765,60693.0,60691.0,0.001]
[1724126500696,0.0821,60694.0,60691.0,0.001]
[1724126501124,0.246862,60694.0,60691.0,0.001]
[1724126501323,0.164766,60692.0,60691.0,0.001]
[1724126501524,0.164766,60692.0,60689.0,0.0049086]
[1724126501736,0.164766,60692.0,60689.0,0.0009086]
[1724126502590,0.164766,60692.0,60691.0,0.005]
[1724126503017,1.2486,60698.0,60691.0,0.0653]
[1724126503227,1.2486,60698.0,60694.0,0.164759]
[1724126503634,1.2486,60698.0,60695.0,0.164757]
[1724126505694,1.2486,60698.0,60695.0,0.1656656]
[1724126508197,1.2486,60698.0,60696.0,0.164754]
[1724126508418,0.0821,60699.0,60696.0,0.164754]
[1724126508600,0.0821,60699.0,60697.0,0.164752]
[1724126508943,0.164743,60701.0,60697.0,0.164752]
[1724126510575,0.164745,60700.0,60696.0,0.164754]
[1724126510787,0.0753,60699.0,60696.0,0.164754]
[1724126511249,0.0753,60699.0,60697.0,0.001]
[1724126511432,0.0604,60698.0,60697.0,0.001]
[1724126511634,0.22515,60698.0,60697.0,0.001]
[1724126511867,0.22515,60698.0,60695.0,0.0009086]
[1724126511868,0.164755,60696.0,60695.0,0.0009086]
[1724126512302,0.569566,60696.0,60695.0,0.0009086]
[1724126512538,0.959477,60696.0,60695.0,0.0009086]
[1724126514648,0.959477,60696.0,60695.0,0.0019086]
[1724126515200,0.629966,60696.0,60695.0,0.0019086]
[1724126520400,1.878566,60696.0,60695.0,0.0019086]
[1724126521056,1.2486,60696.0,60695.0,0.0019086]
[1724126521447,1.2486,60696.0,60695.0,1.31481337]
[1724126521823,1.2486,60696.0,60695.0,2.81381337]
[1724126522237,1.2486,60696.0,60695.0,2.81481337]
[1724126522443,1.2486,60696.0,60695.0,1.31381337]
[1724126522657,1.2486,60696.0,60695.0,1.2930146]
[1724126522855,1.2486,60696.0,60695.0,1.31380984]
[1724126523259,1.2486,60696.0,60695.0,0.98829384]
[1724126523817,1.2486,60696.0,60695.0,0.52297784]
[1724126524227,1.2486,60696.0,60695.0,0.51997784]
[1724126524435,1.2486,60696.0,60695.0,0.51597784]
[1724126524637,1.2486,60696.0,60695.0,0.52597784]
[1724126524961,1.2486,60696.0,60695.0,0.53297784]
[1724126526155,0.000826,60698.0,60697.0,0.164752]
[1724126526474,0.000826,60698.0,60697.0,0.18554724]
[1724126527751,0.000826,60698.0,60697.0,0.19354724]
[1724126528076,0.000826,60698.0,60697.0,0.19854724]
[1724126528679,0.000826,60698.0,60697.0,0.03379524]
[1724126528885,0.000826,60698.0,60697.0,0.99965724]
[1724126529040,0.000826,60698.0,60697.0,0.93675724]
[1724126531065,0.000826,60698.0,60697.0,0.915962]
[1724126531293,0.000826,60698.0,60697.0,0.93675669]
[1724126531584,0.000826,60698.0,60697.0,0.92375669]
[1724126531999,0.000826,60698.0,60697.0,0.93675669]
[1724126532703,0.000826,60698.0,60697.0,1.32206169]
[1724126532940,0.000826,60698.0,60697.0,1.36434388]
[1724126533164,0.000826,60698.0,60697.0,1.36534388]
[1724126533391,0.000826,60698.0,60697.0,1.53869265]
[1724126533648,0.000826,60698.0,60697.0,2.2972038]
[1724126533898,0.000826,60698.0,60697.0,2.27999587]
[1724126534156,0.000826,60698.0,60697.0,2.2324375]
[1724126534393,0.000826,60698.0,60697.0,2.3297544]
[1724126534640,0.000826,60698.0,60697.0,2.2224375]
[1724126534885,0.000826,60698.0,60697.0,2.2164375]
[1724126535119,0.000826,60698.0,60697.0,2.2274375]
[1724126535353,0.000826,60698.0,60697.0,2.2224375]
[1724126535812,0.000826,60698.0,60697.0,2.2304375]
[1724126536035,0.000826,60698.0,60697.0,2.2444375]
[1724126536275,0.000826,60698.0,60697.0,3.84272505]
[1724126536521,0.000826,60698.0,60697.0,3.80114117]
[1724126537273,0.000826,60698.0,60697.0,3.89938072]
[1724126537506,0.000826,60698.0,60697.0,3.78709712]
[1724126538177,0.000826,60698.0,60697.0,3.88537737]
[1724126538401,0.000826,60698.0,60697.0,1.93891392]
[1724126538633,0.000826,60698.0,60697.0,1.3783372]
[1724126538866,0.000826,60698.0,60697.0,1.31406169]
[1724126539071,0.000826,60698.0,60697.0,1.32806169]
[1724126539274,0.000826,60698.0,60697.0,1.34206169]
[1724126539490,0.000826,60698.0,60697.0,1.31406169]
[1724126539924,0.000826,60698.0,60697.0,1.32806169]
[1724126540748,0.000826,60698.0,60697.0,1.88107146]
[1724126540956,0.000826,60698.0,60697.0,1.88019097]
[1724126541162,0.000826,60698.0,60697.0,2.21640223]
[1724126541460,0.000826,60698.0,60697.0,2.29009706]
[1724126541689,0.000826,60698.0,60697.0,3.81609706]
[1724126541911,0.000826,60698.0,60697.0,3.80309706]
[1724126542116,0.000826,60698.0,60697.0,3.79309706]
[1724126542362,0.000826,60698.0,60697.0,3.4418858]
[1724126542497,0.000826,60698.0,60697.0,3.42109111]
[1724126542715,0.000826,60698.0,60697.0,3.44187095]
[1724126543205,0.000826,60698.0,60697.0,3.44185427]
[1724126543404,0.000826,60698.0,60697.0,3.36817662]
[1724126543885,0.000826,60698.0,60697.0,3.7900471]
[1724126544023,0.000826,60698.0,60697.0,3.74738459]
[1724126544231,0.000826,60698.0,60697.0,3.80404751]
[1724126544501,0.000826,60698.0,60697.0,3.37917662]
[1724126545934,0.000826,60698.0,60697.0,1.87917662]
[1724126546683,0.000826,60698.0,60697.0,1.84390059]
[1724126546904,0.000826,60698.0,60697.0,1.92927844]
[1724126547105,0.000826,60698.0,60697.0,1.88017812]
[1724126547314,0.000826,60698.0,60697.0,1.92926554]
[1724126547956,0.000826,60698.0,60697.0,1.92826554]
[1724126548130,0.000826,60698.0,60697.0,1.92926554]
[1724126549072,0.000826,60698.0,60697.0,1.88017812]
[1724126549289,0.000826,60698.0,60697.0,1.93682859]
[1724126549498,0.00071067,60698.0,60697.0,1.88017812]
[1724126549705,0.077,60711.0,60710.0,0.823587]
[1724126549706,0.07112286,60711.0,60710.0,0.823587]
[1724126549907,0.07112286,60711.0,60710.0,0.84436768]
[1724126550935,0.0622,60713.0,60712.0,0.494136]
[1724126551342,0.0622,60713.0,60712.0,0.84433537]
[1724126552369,0.0622,60713.0,60712.0,0.84933537]
[1724126552581,0.0622,60713.0,60712.0,0.51991137]
[1724126552790,0.1433,60713.0,60712.0,0.19848737]
[1724126553194,0.1433,60713.0,60712.0,0.177712]
[1724126556102,0.144126,60713.0,60712.0,0.177712]
[1724126558430,0.256826,60713.0,60712.0,0.177712]
[1724126559037,0.256826,60713.0,60712.0,0.19848994]
[1724126559240,0.256826,60713.0,60712.0,0.177712]
[1724126562337,0.421535,60713.0,60712.0,0.013]
[1724126562541,1.25171977,60713.0,60712.0,0.013]
[1724126562751,1.35171977,60713.0,60712.0,0.013]
[1724126563193,1.35171977,60713.0,60712.0,0.008]
[1724126563807,1.35171977,60713.0,60704.0,0.164733]
[1724126563808,0.0772,60706.0,60704.0,0.164733]
[1724126564010,0.1127,60705.0,60704.0,0.164733]
[1724126564217,0.1127,60705.0,60704.0,0.18552792]
[1724126565262,0.1127,60705.0,60704.0,0.19152792]
[1724126566082,0.1127,60705.0,60704.0,0.19552792]
[1724126566961,0.1127,60705.0,60704.0,0.19552944]
[1724126567368,0.000826,60713.0,60712.0,0.329424]
[1724126567585,0.000826,60713.0,60712.0,0.51492748]
[1724126567808,0.000826,60713.0,60712.0,0.84435148]
[1724126568212,0.000826,60713.0,60712.0,1.17377548]
[1724126568415,0.000826,60713.0,60712.0,1.25047548]
[1724126568612,0.000826,60713.0,60712.0,1.31387548]
[1724126569046,0.000826,60713.0,60712.0,1.35015221]
[1724126569319,0.000826,60713.0,60712.0,1.85092498]
[1724126569555,0.001826,60713.0,60712.0,1.95751741]
[1724126569978,0.001826,60713.0,60712.0,1.85592498]
[1724126570533,0.001826,60713.0,60712.0,1.85092498]
[1724126570750,0.000826,60713.0,60712.0,1.80485677]
[1724126570940,0.000826,60713.0,60712.0,1.93658133]
[1724126571117,0.000826,60713.0,60712.0,2.3618246]
[1724126571316,0.000826,60713.0,60712.0,2.23902121]
[1724126571519,0.145025,60732.0,60731.0,0.493981]
[1724126571753,0.145025,60732.0,60731.0,0.5147559]
[1724126572326,0.145025,60732.0,60731.0,0.493981]
[1724126573936,0.145025,60732.0,60731.0,0.495981]
[1724126575026,0.145025,60732.0,60731.0,0.16666]
[1724126575780,0.145025,60732.0,60731.0,0.495981]
[1724126576946,0.145025,60732.0,60731.0,0.493981]
[1724126577370,0.145025,60732.0,60731.0,0.495981]
[1724126577573,0.145025,60732.0,60731.0,0.493981]
[1724126578137,0.145025,60732.0,60731.0,0.16666]
[1724126578337,0.81034577,60732.0,60731.0,0.002]
[1724126578544,1.13966077,60732.0,60731.0,0.002]
[1724126579088,0.309682,60732.0,60731.0,0.002]
[1724126579291,0.145025,60732.0,60731.0,0.002]
[1724126580106,0.145025,60732.0,60729.0,0.164664]
[1724126581826,0.147025,60732.0,60729.0,0.164664]
[1724126583888,0.147025,60732.0,60728.0,0.329334]
[1724126584004,0.147025,60732.0,60730.0,0.164662]
[1724126584422,0.147025,60732.0,60731.0,0.493981]
[1724126584647,0.000825,60732.0,60731.0,0.493981]
[1724126585701,0.001825,60732.0,60731.0,0.493981]
[1724126586166,0.000825,60732.0,60731.0,0.493981]
[1724126586578,0.000825,60732.0,60731.0,0.823302]
[1724126586990,0.000825,60732.0,60731.0,0.826302]
[1724126587159,0.000825,60732.0,60731.0,0.823302]
[1724126587620,0.000825,60732.0,60731.0,0.826302]
[1724126587827,0.000825,60732.0,60731.0,1.152623]
[1724126588239,0.000825,60732.0,60731.0,1.158623]
[1724126588414,0.000825,60732.0,60731.0,1.154623]
[1724126588613,0.000825,60732.0,60731.0,1.152623]
[1724126588992,0.000825,60732.0,60731.0,1.79499277]
[1724126588993,0.001825,60732.0,60731.0,1.79499277]
[1724126589269,0.001825,60732.0,60731.0,1.81575324]
[1724126589682,0.000825,60732.0,60731.0,1.81575324]
[1724126589924,0.000825,60732.0,60731.0,1.91675324]
[1724126590035,0.000825,60732.0,60731.0,1.91674154]
[1724126590462,0.000825,60732.0,60731.0,1.92174154]
[1724126590687,0.000825,60732.0,60731.0,1.91674154]
[1724126591159,0.000825,60732.0,60731.0,1.9699981]
[1724126591356,0.000825,60732.0,60731.0,1.9799981]
[1724126591787,0.000825,60732.0,60731.0,2.0079981]
[1724126592585,0.000825,60732.0,60731.0,1.9939981]
[1724126593004,0.000825,60732.0,60731.0,2.0079981]
[1724126593207,0.000825,60732.0,60731.0,3.83731838]
[1724126593619,0.000825,60732.0,60731.0,3.82331838]
[1724126593823,0.000825,60732.0,60731.0,3.50799738]
[1724126594028,0.000825,60732.0,60731.0,3.45773671]
[1724126594230,0.000825,60732.0,60731.0,3.47999216]
[1724126594431,0.000825,60732.0,60731.0,3.50799216]
[1724126594878,0.000825,60732.0,60731.0,3.49399216]
[1724126595481,0.000825,60732.0,60731.0,3.50799216]
[1724126599195,0.000825,60732.0,60731.0,3.56458817]
[1724126599394,0.000825,60732.0,60731.0,3.50799216]
[1724126600231,0.000825,60732.0,60731.0,3.56458889]
[1724126600594,0.000825,60732.0,60731.0,4.00640936]
[1724126600921,0.0002,60739.0,60738.0,1.816056]
[1724126601148,0.00825,60749.0,60748.0,0.533042]
[1724126601355,0.00825,60749.0,60748.0,2.00041871]
[1724126601625,0.00825,60749.0,60748.0,3.86586585]
[1724126601851,0.00825,60749.0,60748.0,3.92240544]
[1724126602040,0.00825,60749.0,60748.0,3.92240665]
[1724126602493,0.00825,60749.0,60748.0,4.52085766]
[1724126602695,0.00825,60749.0,60748.0,3.80590665]
[1724126602906,0.00825,60749.0,60748.0,3.75932355]
[1724126603113,0.00825,60749.0,60748.0,3.06690959]
[1724126603732,0.00825,60749.0,60748.0,3.03066787]
[1724126604348,0.00825,60749.0,60748.0,3.04466787]
[1724126604550,0.00825,60749.0,60748.0,3.05866787]
[1724126604764,0.00825,60749.0,60748.0,3.04466787]
[1724126604980,0.00825,60749.0,60748.0,1.52246787]
[1724126605192,0.00825,60749.0,60748.0,1.1870191]
[1724126605397,0.00825,60749.0,60748.0,0.85107]
[1724126606423,0.00825,60749.0,60748.0,0.83707]
[1724126606833,0.00825,60749.0,60748.0,1.32964677]
[1724126607045,0.00825,60749.0,60748.0,1.33364677]
[1724126607247,0.00825,60749.0,60748.0,1.35436787]
[1724126607493,0.00825,60749.0,60748.0,1.33364677]
[1724126607698,0.00825,60749.0,60748.0,1.32964677]
[1724126608119,0.00825,60749.0,60748.0,0.82307]
[1724126608499,0.00825,60749.0,60748.0,0.82907]
[1724126608704,0.08395,60749.0,60748.0,0.82907]
[1724126608903,0.08395,60749.0,60748.0,0.83807]
[1724126609689,0.08395,60749.0,60748.0,0.83207]
[1724126610167,0.08395,60749.0,60748.0,0.82307]
[1724126610168,0.00825,60749.0,60748.0,0.82307]
[1724126610367,0.00825,60749.0,60748.0,0.82707]
[1724126610778,0.00825,60749.0,60748.0,0.82907]
[1724126611307,0.00825,60749.0,60748.0,0.658456]
[1724126611557,0.00825,60749.0,60748.0,0.82307]
[1724126611905,0.00825,60749.0,60748.0,0.83407]
[1724126612100,0.00825,60749.0,60748.0,0.85480787]
[1724126612903,0.00825,60749.0,60748.0,0.85080787]
[1724126613283,0.00825,60749.0,60748.0,0.83507]
[1724126613719,0.00825,60749.0,60748.0,0.85580568]
[1724126614573,0.00825,60749.0,60748.0,1.43818245]
[1724126617119,0.00825,60749.0,60748.0,1.02715445]
[1724126617427,0.00825,60749.0,60748.0,1.02715257]
[1724126618904,0.00825,60749.0,60748.0,0.8558038]
[1724126622897,0.00825,60749.0,60748.0,1.164298]
[1724126623097,0.00825,60749.0,60748.0,1.18503196]
[1724126624918,0.00825,60749.0,60748.0,2.68503196]
[1724126625109,0.00825,60749.0,60748.0,2.721282]
[1724126625362,0.00825,60749.0,60748.0,2.39205341]
[1724126625789,0.00825,60749.0,60748.0,2.3920532]
[1724126626483,0.00825,60749.0,60748.0,2.39159445]
[1724126626652,0.00825,60749.0,60748.0,2.35356742]
[1724126628310,0.00825,60749.0,60748.0,2.35447492]
[1724126629944,0.00825,60749.0,60748.0,2.3907257]
[1724126633704,0.00825,60749.0,60748.0,2.3907275]
[1724126635665,0.00825,60749.0,60748.0,0.8907275]
[1724126636786,0.00825,60749.0,60748.0,0.89901736]
[1724126637525,0.974107,60749.0,60748.0,0.04193239]
[1724126637717,1.30333,60749.0,60748.0,0.0129075]
[1724126637954,1.40333,60749.0,60748.0,0.0129075]
[1724126638153,1.4814377,60749.0,60748.0,0.0129075]
[1724126638707,1.51593,60749.0,60748.0,0.0079075]
[1724126639499,1.51593,60749.0,60748.0,0.0009075]
[1724126640545,1.40333,60749.0,60748.0,0.0009075]
[1724126640747,1.40533,60749.0,60748.0,0.0009075]
[1724126640952,1.40333,60749.0,60748.0,0.0019075]
[1724126641380,0.25405,60749.0,60748.0,0.0019075]
[1724126641602,0.747884,60749.0,60748.0,0.0019075]
[1724126642244,0.747884,60749.0,60748.0,0.0009075]
[1724126642665,0.744884,60749.0,60748.0,0.0019075]
[1724126643085,0.746884,60749.0,60748.0,0.0009075]
[1724126643299,0.744884,60749.0,60748.0,0.0009075]
[1724126643756,1.075107,60749.0,60748.0,0.0009075]
[1724126644580,1.074107,60749.0,60748.0,0.0009075]
[1724126644783,0.744884,60749.0,60748.0,0.0009075]
[1724126645925,0.745884,60749.0,60748.0,0.0009075]
[1724126646970,0.00925,60749.0,60748.0,0.4947495]
[1724126647165,0.00925,60749.0,60748.0,0.8239775]
[1724126647623,0.00925,60749.0,60748.0,1.32455427]
[1724126647824,0.00825,60749.0,60748.0,1.32455427]
[1724126649057,0.00925,60749.0,60748.0,1.32455427]
[1724126649263,0.00825,60749.0,60748.0,1.32455427]
[1724126649871,0.00825,60749.0,60748.0,1.33855427]
[1724126650285,0.00825,60749.0,60748.0,1.34155427]
[1724126650696,0.00825,60749.0,60748.0,1.53088723]
[1724126650897,0.00825,60749.0,60748.0,3.07813759]
[1724126651163,0.00825,60749.0,60748.0,3.07513759]
[1724126651600,0.00825,60749.0,60748.0,3.82229985]
[1724126651773,0.00825,60749.0,60748.0,3.90274428]
[1724126651988,0.0080977,60752.0,60751.0,1.157242]
[1724126652179,0.0080977,60752.0,60751.0,2.15845068]
[1724126652383,0.0080977,60752.0,60751.0,2.22020255]
[1724126652746,0.0080977,60752.0,60751.0,2.25644493]
[1724126652931,0.0080977,60752.0,60751.0,2.15844255]
[1724126653539,0.0080977,60752.0,60751.0,2.24592907]
[1724126654150,0.0080977,60752.0,60751.0,2.25392907]
[1724126654351,0.0080977,60752.0,60751.0,3.38903152]
[1724126654559,0.0080977,60752.0,60751.0,3.38103152]
[1724126654764,0.0080977,60752.0,60751.0,3.311545]
[1724126654971,0.0080977,60752.0,60751.0,3.321545]
[1724126655391,0.0080977,60752.0,60751.0,3.368845]
[1724126655595,0.0080977,60752.0,60751.0,3.73371883]
[1724126655817,0.0080977,60752.0,60751.0,3.73771883]
[1724126656231,0.0080977,60752.0,60751.0,4.06692962]
[1724126656440,0.0080977,60752.0,60751.0,4.25086363]
[1724126656654,0.0080977,60752.0,60751.0,4.24037202]
[1724126656860,0.0080977,60752.0,60751.0,4.14068792]
[1724126657067,0.0080977,60752.0,60751.0,4.2748521]
[1724126657276,0.0080977,60752.0,60751.0,4.33128442]
[1724126657478,0.0080977,60752.0,60751.0,4.16293012]
[1724126657688,0.0080977,60752.0,60751.0,4.33128206]
[1724126657938,0.0080977,60752.0,60751.0,4.33528206]
[1724126658345,0.0080977,60752.0,60751.0,3.9336401]
[1724126658545,0.0080977,60752.0,60751.0,3.51978534]
[1724126658724,0.0080977,60752.0,60751.0,2.03378566]
[1724126658952,0.0080977,60752.0,60751.0,2.03371066]
[1724126659159,0.0080977,60752.0,60751.0,2.03571066]
[1724126660539,0.0080977,60752.0,60751.0,1.38775797]
[1724126660736,0.0080977,60752.0,60751.0,1.35251577]
[1724126661513,0.0080977,60752.0,60751.0,1.32451577]
[1724126661723,0.0080977,60752.0,60751.0,1.32351577]
[1724126661931,0.0080977,60752.0,60751.0,1.35151577]
[1724126662143,0.0080977,60752.0,60751.0,1.34051577]
[1724126662355,0.0080977,60752.0,60751.0,1.35451577]
[1724126662746,0.0080977,60752.0,60751.0,1.35151577]
[1724126663107,0.0080977,60752.0,60751.0,1.33751577]
[1724126663305,0.0080977,60752.0,60751.0,1.35451577]
[1724126663561,0.0080977,60752.0,60751.0,1.35151577]
[1724126663707,0.0080977,60752.0,60751.0,1.35451577]
[1724126664125,0.0080977,60752.0,60751.0,1.35151577]
[1724126664528,0.0080977,60752.0,60751.0,2.85151577]
[1724126665145,0.0080977,60752.0,60751.0,2.83751577]
[1724126665346,0.0080977,60752.0,60751.0,2.84051577]
[1724126665560,0.0080977,60752.0,60751.0,2.85451577]
[1724126665967,0.0080977,60752.0,60751.0,2.83751577]
[1724126666194,0.0080977,60752.0,60751.0,2.84051577]
[1724126666387,0.0080977,60752.0,60751.0,2.85451577]
[1724126666607,0.0080977,60752.0,60751.0,2.85151577]
[1724126667018,0.0080977,60752.0,60751.0,3.18572777]
[1724126667178,0.0080977,60752.0,60751.0,3.20872777]
[1724126667388,0.0080977,60752.0,60751.0,3.20472777]
[1724126668696,0.0080977,60752.0,60751.0,3.18172777]
[1724126668824,0.0080977,60752.0,60751.0,3.18072777]
[1724126668825,1.2468977,60752.0,60751.0,3.18072777]
[1724126670510,1.1080977,60752.0,60751.0,3.18072777]
[1724126673023,1.1080977,60752.0,60751.0,3.20145851]
[1724126673575,1.1080977,60752.0,60751.0,3.23770549]
[1724126676174,1.1089227,60752.0,60751.0,3.23770549]
[1724126676852,1.1089227,60752.0,60751.0,3.18072777]
[1724126676988,1.1089227,60752.0,60751.0,3.23770292]
[1724126680274,1.1089227,60752.0,60751.0,3.24070292]
[1724126680835,1.1089227,60752.0,60751.0,3.20145793]
[1724126681046,1.1089227,60752.0,60751.0,3.23770491]
[1724126681411,1.1089227,60752.0,60751.0,3.24070491]
[1724126681617,1.1089227,60752.0,60751.0,3.37596014]
[1724126681822,1.1089227,60752.0,60751.0,3.46156014]
[1724126682220,1.1089227,60752.0,60751.0,3.46556014]
[1724126682448,1.1089227,60752.0,60751.0,3.47457445]
[1724126683278,1.1089227,60752.0,60751.0,3.4498368]
[1724126683474,1.1089227,60752.0,60751.0,3.47056417]
[1724126684153,1.1089227,60752.0,60751.0,3.57056417]
[1724126684648,1.1089227,60752.0,60751.0,3.89977617]
[1724126684908,1.1089227,60752.0,60751.0,3.89287467]
[1724126685117,1.1089227,60752.0,60751.0,3.89976407]
[1724126685327,1.1089227,60752.0,60751.0,3.87172989]
[1724126685535,1.1089227,60752.0,60751.0,4.23656294]
[1724126685746,1.1089227,60752.0,60751.0,4.25456294]
[1724126685950,1.1089227,60752.0,60751.0,4.26856294]
[1724126686164,1.1089227,60752.0,60751.0,4.25456294]
[1724126686302,1.1089227,60752.0,60751.0,4.16689188]
[1724126686502,1.1089227,60752.0,60751.0,4.2825525]
[1724126687515,1.1089227,60752.0,60751.0,4.2785525]
[1724126687820,1.1089227,60752.0,60751.0,4.2825525]
[1724126688876,1.1089227,60752.0,60751.0,4.27353287]
[1724126689108,1.1089227,60752.0,60751.0,5.06254012]
[1724126689898,1.1089227,60752.0,60751.0,5.06253998]
[1724126690099,1.1089227,60752.0,60751.0,5.07236606]
[1724126690631,1.1089227,60752.0,60751.0,5.72991892]
[1724126691311,0.9772387,60752.0,60751.0,5.39756632]
[1724126691526,0.9443177,60752.0,60751.0,5.29909208]
[1724126691727,0.9443177,60752.0,60751.0,5.3917408]
[1724126692056,0.9443177,60752.0,60751.0,6.0497408]
[1724126692314,0.7797127,60752.0,60751.0,6.0637408]
[1724126692654,0.7797127,60752.0,60751.0,6.0777408]
[1724126692880,0.7797127,60752.0,60751.0,6.0497408]
[1724126693290,0.7797127,60752.0,60751.0,6.0777408]
[1724126693469,0.7797127,60752.0,60751.0,6.0637408]
[1724126693822,0.7797127,60752.0,60751.0,6.0777408]
[1724126694020,0.7797127,60752.0,60751.0,6.06873355]
[1724126694244,0.7797127,60752.0,60751.0,6.07774034]
[1724126694634,0.7797127,60752.0,60751.0,6.06374034]
[1724126694821,0.6151077,60752.0,60751.0,6.07372637]
[1724126695025,0.6151077,60752.0,60751.0,6.05972637]
[1724126695249,0.5492657,60752.0,60751.0,6.06372637]
[1724126695430,0.4505027,60752.0,60751.0,6.05972637]
[1724126695645,0.4505027,60752.0,60751.0,6.04572637]
[1724126695853,0.4505027,60752.0,60751.0,6.05972637]
[1724126696391,0.2858977,60752.0,60751.0,6.12104047]
[1724126696681,0.2858977,60752.0,60751.0,6.07772637]
[1724126696838,0.2858977,60752.0,60751.0,6.02130848]
[1724126697138,0.2858977,60752.0,60751.0,6.07771298]
[1724126697333,0.2858977,60752.0,60751.0,6.07771316]
[1724126698511,0.2858977,60752.0,60751.0,6.07770692]
[1724126698856,0.2858977,60752.0,60751.0,6.07670692]
[1724126699032,0.2858977,60752.0,60751.0,6.07770692]
[1724126699639,0.2858977,60752.0,60751.0,5.35501158]
[1724126699839,0.2858977,60752.0,60751.0,5.29770692]
[1724126700064,0.2858977,60752.0,60751.0,5.29861442]
[1724126700681,0.2858977,60752.0,60751.0,5.10966661]
[1724126700876,0.2858977,60752.0,60751.0,2.28969496]
[1724126700877,0.4305977,60752.0,60751.0,2.28969496]
[1724126701052,0.4305977,60752.0,60751.0,1.77516997]
[1724126701253,0.4305977,60752.0,60751.0,1.39537417]
[1724126701454,0.4305977,60752.0,60751.0,1.34513593]
[1724126701640,0.4305977,60752.0,60751.0,1.35913593]
[1724126702014,0.4305977,60752.0,60751.0,1.37313593]
[1724126702407,0.4305977,60752.0,60751.0,1.01592393]
[1724126702647,0.4305977,60752.0,60751.0,2.51592393]
[1724126702850,0.4305977,60752.0,60751.0,2.54392393]
[1724126703707,0.4305977,60752.0,60751.0,2.52992393]
[1724126703917,0.4305977,60752.0,60751.0,2.51592393]
[1724126704120,0.4305977,60752.0,60751.0,2.51593857]
[1724126704320,0.4305977,60752.0,60751.0,2.52993857]
[1724126704731,0.4305977,60752.0,60751.0,2.51593857]
[1724126705140,0.4305977,60752.0,60751.0,2.54393857]
[1724126707735,0.4305977,60752.0,60751.0,2.54393737]
[1724126708133,0.4305977,60752.0,60751.0,2.54393667]
[1724126711841,0.4305977,60752.0,60751.0,2.54393938]
[1724126714359,0.4305977,60752.0,60751.0,2.87615138]
[1724126714946,0.4305977,60752.0,60751.0,2.84815138]
[1724126715287,0.4305977,60752.0,60751.0,2.86215138]
[1724126715504,0.4305977,60752.0,60751.0,2.84142327]
[1724126715717,0.4305977,60752.0,60751.0,2.86214837]
[1724126716348,0.4305977,60752.0,60751.0,2.87614837]
[1724126716349,0.2858977,60752.0,60751.0,2.87614837]